[Event "Erfurt Young Masters 2017"]
[Site "Erfurt"]
[Date "2017.07.31"]
[Round "2"]
[White "Brunello, Marina"]
[Black "Rogozenco, Teodora"]
[Result "1-0"]
[ECO "C41"]
[WhiteElo "2367"]
[BlackElo "2169"]
[Annotator "NA"]
[PlyCount "49"]
[EventDate "2017.??.??"]
[EventType "tourn"]
[EventCountry "GER"]
[SourceTitle "playchess.com"]
[Source "ChessBase"]
[SourceQuality "1"]
[TimeControl "40/5400+30:900+30"]

1. e4 {[%emt 0:00:00]} d6 {[%emt 0:00:11]} 2. d4 {[%emt 0:00:11]} Nf6 {[%emt 0:00:06]} 3. Nc3 {[%emt 0:00:22]} e5 {[%emt 0:00:05]} 4. Nf3 {[%emt 0:00:15]} Nbd7 {[%emt 0:00:04]} 5. Bc4 {[%emt 0:00:59]} Be7 {[%emt 0:00:05]} 6. O-O {[%emt 0:02:19]} O-O {[%emt 0:00:07]} 7. a4 {[%emt 0:02:28]} a5 {[%emt 0:00:06]} 8. h3 {[%emt 0:02:02]} h6 {[%emt 0:00:07]} 9. Be3 {[%emt 0:07:32]} c6 {[%emt 0:00:07]} 10. Ba2 {[%emt 0:01:28]} Qc7 {[%emt 0:00:40]} 11. Qd2 {[%emt 0:01:16]} Re8 {[%emt 0:00:19]} 12. Rfe1 {[%emt 0:01:11]} Nf8 {[%emt 0:00:10]} 13. Rad1 {[%emt 0:01:58]} Ng6 {[%emt 0:00:08]} 14. dxe5 {[%emt 0:13:22]} dxe5 {[%emt 0:00:28]} 15. Bxh6 {[%emt 0:01:56]} gxh6 {[%emt 0:09:40]} 16. Qxh6 {[%emt 0:02:35]} Nf8 {[%emt 0:06:24]} 17. Qg5+ {[%emt 0:13:12]} Kh7 {[%emt 0:03:53]} 18. Bxf7 {[%emt 0:02:37]} Rd8 {[%emt 0:04:36]} 19. Rxd8 {[%emt 0:01:10]} Bxd8 {[%emt 0:02:55]} 20. Nxe5 {[%emt 0:00:28]} Kh8 {[%emt 0:08:31]} 21. Qh6+ {[%emt 0:05:32]} N6h7 {[%emt 0:00:26]} 22. Ng6+ {[%emt 0:00:11]} Nxg6 {[%emt 0:00:10]} 23. Qxg6 {[%emt 0:00:06]} Nf6 {[%emt 0:01:00]} 24. e5 {[%emt 0:00:18]} Qe7 {[%emt 0:00:32]} 25. Qxf6+ {[%emt 0:00:12]} 1-0

[Event "Erfurt Young Masters 2017"]
[Site "Erfurt"]
[Date "2017.07.31"]
[Round "2"]
[White "Pourkashiyan, Atousa"]
[Black "Szczepkowska-Horowska, Karina"]
[Result "0-1"]
[ECO "B28"]
[WhiteElo "2289"]
[BlackElo "2396"]
[Annotator "ChessBase"]
[PlyCount "92"]
[EventDate "2017.??.??"]
[EventType "tourn"]
[EventCountry "GER"]
[SourceTitle "playchess.com"]
[Source "ChessBase"]
[SourceQuality "1"]
[TimeControl "40/5400+30:900+30"]

1. e4 {[%emt 0:04:21]} c5 {[%emt 0:00:08]} 2. Nf3 {[%emt 0:00:06]} a6 {[%emt 0:00:04]} 3. c3 {[%emt 0:00:57]} e6 {[%emt 0:00:07]} 4. d4 {[%emt 0:00:59]} d5 {[%emt 0:00:09]} 5. e5 {[%emt 0:04:48]} Bd7 {[%emt 0:00:20]} 6. a4 {[%emt 0:01:50]} Nc6 {[%emt 0:01:59]} 7. Be2 {[%emt 0:04:00]} cxd4 {[%emt 0:02:48]} 8. cxd4 {[%emt 0:00:15]} Nge7 {[%emt 0:03:11]} 9. Nbd2 {[%emt 0:09:08]} Nf5 {[%emt 0:10:49]} 10. Nb3 {[%emt 0:01:07]} Rc8 {[%emt 0:06:06]} 11. O-O {[%emt 0:01:19]} Be7 {[%emt 0:02:23]} 12. g4 {[%emt 0:04:03]} Nh4 {[%emt 0:02:54]} 13. Nxh4 {[%emt 0:08:30]} Bxh4 {[%emt 0:00:05]} 14. Nc5 {[%emt 0:07:10]} Qc7 {[%emt 0:06:43]} 15. Be3 {[%emt 0:03:54]} Be7 {[%emt 0:05:31]} 16. Rc1 {[%emt 0:00:59]} Qb6 {[%emt 0:07:48]} 17. Qd2 {[%emt 0:03:24]} Bxc5 {[%emt 0:04:25]} 18. Rxc5 {[%emt 0:00:51]} Ne7 {[%emt 0:00:32]} 19. Rxc8+ {[%emt 0:04:33]} Bxc8 {[%emt 0:01:28]} 20. b4 {[%emt 0:03:35]} Bd7 {[%emt 0:02:49]} 21. b5 {[%emt 0:01:20]} axb5 {[%emt 0:02:49]} 22. axb5 {[%emt 0:00:08]} O-O {[%emt 0:01:31]} 23. Ra1 {[%emt 0:05:38]} Nc8 {[%emt 0:07:09]} 24. Qb4 {[%emt 0:06:06]} Qd8 {[%emt 0:01:19]} 25. Ra8 {[%emt 0:03:20]} h6 {[%emt 0:06:45]} 26. Qc5 {[%emt 0:05:08]} Kh7 {[%emt 0:03:40]} 27. Rb8 {[%emt 0:02:16]} b6 {[%emt 0:01:29]} 28. Qc2+ {[%emt 0:00:03]} Kg8 {[%emt 0:02:34]} 29. Bd2 {[%emt 0:02:07]} Kh8 {[%emt 0:02:45]} 30. Bb4 {[%emt 0:01:04]} Rg8 {[%emt 0:00:06]} 31. Rb7 {[%emt 0:00:46]} Qe8 {[%emt 0:00:52]} 32. Qd3 {[%emt 0:03:08]} f5 {[%emt 0:01:52]} 33. exf6 {[%emt 0:02:07]} gxf6 {[%emt 0:00:15]} 34. Kh1 {[%emt 0:01:02]} Rg7 {[%emt 0:00:56]} 35. h3 {[%emt 0:01:55]} Bxb5 {[%emt 0:02:56]} 36. Qe3 {[%emt 0:03:37]} Rxb7 {[%emt 0:00:26]} 37. Qxh6+ {[%emt 0:00:29]} Kg8 {[%emt 0:01:09]} 38. Bxb5 {[%emt 0:00:26]} Qxb5 {[%emt 0:00:22]} 39. Qf8+ {[%emt 0:01:26]} Kh7 {[%emt 0:00:05]} 40. Qxc8 {[%emt 0:00:36]} Qf1+ {[%emt 0:15:37]} 41. Kh2 {[%emt 0:15:02]} Qxf2+ {[%emt 0:00:08]} 42. Kh1 {[%emt 0:00:01]} Qf1+ {[%emt 0:01:16]} 43. Kh2 {[%emt 0:00:02]} Qf4+ {[%emt 0:00:06]} 44. Kh1 {[%emt 0:02:36]} Rc7 {[%emt 0:00:15]} 45. Qxe6 {[%emt 0:00:19]} Rc1+ {[%emt 0:00:56]} 46. Be1 {[%emt 0:00:32]} Qe4+ {[%emt 0:00:21]} 0-1

[Event "Erfurt Young Masters 2017"]
[Site "Erfurt"]
[Date "2017.08.01"]
[Round "4"]
[White "Schneider, Jana"]
[Black "Pourkashiyan, Atousa"]
[Result "0-1"]
[ECO "B40"]
[WhiteElo "2258"]
[BlackElo "2289"]
[Annotator "ChessBase"]
[PlyCount "148"]
[EventDate "2017.??.??"]
[EventType "tourn"]
[EventCountry "GER"]
[TimeControl "40/5400+30:900+30"]

1. e4 {[%emt 0:00:00]} c5 {[%emt 0:05:00]} 2. Nf3 {[%emt 0:00:00]} e6 {[%emt 0:00:41]} 3. g3 {[%emt 0:00:12]} Nc6 {[%emt 0:00:18]} 4. Bg2 {[%emt 0:00:13]} Nf6 {[%emt 0:00:03]} 5. Qe2 {[%emt 0:00:15]} e5 {[%emt 0:00:08]} 6. O-O {[%emt 0:00:41]} Be7 {[%emt 0:00:03]} 7. c3 {[%emt 0:01:15]} O-O {[%emt 0:00:08]} 8. Na3 {[%emt 0:00:16]} Re8 {[%emt 0:00:51]} 9. Nc2 {[%emt 0:01:07]} Bf8 {[%emt 0:01:49]} 10. d3 {[%emt 0:00:51]} h6 {[%emt 0:02:14]} 11. Ne3 {[%emt 0:02:27]} d6 {[%emt 0:00:14]} 12. Bd2 {[%emt 0:02:00]} Be6 {[%emt 0:01:10]} 13. Nh4 {[%emt 0:04:13]} d5 {[%emt 0:04:52]} 14. exd5 {[%emt 0:04:17]} Nxd5 {[%emt 0:00:14]} 15. Nhf5 {[%emt 0:02:36]} Nf4 {[%emt 0:22:11]} 16. gxf4 {[%emt 0:02:09]} exf4 {[%emt 0:00:09]} 17. Be4 {[%emt 0:10:31]} fxe3 {[%emt 0:05:25]} 18. fxe3 {[%emt 0:01:37]} Ne7 {[%emt 0:07:54]} 19. Kh1 {[%emt 0:06:03]} Nxf5 {[%emt 0:14:28]} 20. Bxf5 {[%emt 0:00:10]} Qd5+ {[%emt 0:00:36]} 21. Be4 {[%emt 0:03:20]} Qd7 {[%emt 0:04:53]} 22. Bg2 {[%emt 0:08:32]} Rad8 {[%emt 0:07:17]} 23. d4 {[%emt 0:00:47]} cxd4 {[%emt 0:00:43]} 24. cxd4 {[%emt 0:01:49]} Bd5 {[%emt 0:01:53]} 25. a3 {[%emt 0:02:11]} Re6 {[%emt 0:04:20]} 26. Rac1 {[%emt 0:01:33]} Be7 {[%emt 0:06:09]} 27. Rc3 {[%emt 0:01:34]} Bxg2+ {[%emt 0:01:47]} 28. Qxg2 {[%emt 0:00:11]} Rg6 {[%emt 0:00:06]} 29. Qf3 {[%emt 0:02:54]} Rf6 {[%emt 0:00:06]} 30. Qg2 {[%emt 0:00:24]} Rg6 {[%emt 0:02:00]} 31. Qf3 {[%emt 0:02:51]} Rf6 {[%emt 0:02:02]} 32. Qg2 {[%emt 0:00:17]} Rxf1+ {[%emt 0:01:33]} 33. Qxf1 {[%emt 0:00:06]} Bg5 {[%emt 0:00:15]} 34. Qf3 {[%emt 0:02:00]} Re8 {[%emt 0:00:28]} 35. Qg3 {[%emt 0:04:27]} Qb5 {[%emt 0:01:20]} 36. Bc1 {[%emt 0:01:39]} Re6 {[%emt 0:01:36]} 37. Rc5 {[%emt 0:06:57]} Qf1+ {[%emt 0:01:16]} 38. Qg1 {[%emt 0:00:06]} Qf3+ {[%emt 0:01:14]} 39. Qg2 {[%emt 0:00:06]} Qd1+ {[%emt 0:00:51]} 40. Qg1 {[%emt 0:00:07]} Qf3+ {[%emt 0:16:30]} 41. Qg2 {[%emt 0:15:07]} Qxg2+ {[%emt 0:00:24]} 42. Kxg2 {[%emt 0:00:06]} Bxe3 {[%emt 0:00:10]} 43. Bxe3 {[%emt 0:00:16]} Rxe3 {[%emt 0:00:03]} 44. Rb5 {[%emt 0:02:54]} b6 {[%emt 0:00:00]} 45. a4 {[%emt 0:00:00]} g6 {[%emt 0:00:00]} 46. d5 {[%emt 0:00:00]} Kf8 {[%emt 0:00:00]} 47. a5 {[%emt 0:00:00]} bxa5 {[%emt 0:00:00]} 48. Rxa5 {[%emt 0:00:00]} Re2+ {[%emt 0:00:00]} 49. Kg3 {[%emt 0:00:00]} Rxb2 {[%emt 0:00:00]} 50. Rxa7 {[%emt 0:00:00]} Rd2 {[%emt 0:00:00]} 51. Ra8+ {[%emt 0:00:00]} Ke7 {[%emt 0:00:00]} 52. Ra7+ {[%emt 0:00:00]} Kf6 {[%emt 0:00:00]} 53. Rd7 {[%emt 0:00:00]} g5 {[%emt 0:00:00]} 54. h3 {[%emt 0:00:00]} h5 {[%emt 0:00:41]} 55. d6 {[%emt 0:00:00]} Kg6 {[%emt 0:05:27]} 56. Rd8 {[%emt 0:00:00]} f6 {[%emt 0:00:46]} 57. h4 {[%emt 0:00:00]} Rd3+ {[%emt 0:00:11]} 58. Kg2 {[%emt 0:00:02]} g4 {[%emt 0:01:08]} 59. d7 {[%emt 0:01:33]} Kf5 {[%emt 0:00:08]} 60. Kf2 {[%emt 0:00:49]} Rd5 {[%emt 0:00:52]} 61. Rh8 {[%emt 0:00:56]} Rxd7 {[%emt 0:00:03]} 62. Rxh5+ {[%emt 0:00:14]} Kf4 {[%emt 0:00:01]} 63. Ra5 {[%emt 0:00:22]} Rd2+ {[%emt 0:00:20]} 64. Kf1 {[%emt 0:00:33]} Rh2 {[%emt 0:00:47]} 65. Rh5 {[%emt 0:01:23]} f5 {[%emt 0:00:29]} 66. Kg1 {[%emt 0:01:58]} Ra2 {[%emt 0:00:16]} 67. Kf1 {[%emt 0:00:25]} Ke4 {[%emt 0:00:37]} 68. Rg5 {[%emt 0:00:20]} Rh2 {[%emt 0:00:11]} 69. Rh5 {[%emt 0:00:17]} f4 {[%emt 0:00:25]} 70. Rh8 {[%emt 0:00:38]} Kf3 {[%emt 0:00:26]} 71. Kg1 {[%emt 0:00:14]} Rb2 {[%emt 0:00:55]} 72. Rc8 {[%emt 0:00:39]} Rb1+ {[%emt 0:00:09]} 73. Kh2 {[%emt 0:00:06]} g3+ {[%emt 0:00:06]} 74. Kh3 {[%emt 0:00:05]} Rh1# {[%emt 0:00:04]} 0-1

[Event "Erfurt Young Masters 2017"]
[Site "Erfurt"]
[Date "2017.08.04"]
[Round "8"]
[White "Sieber, Fiona"]
[Black "Heinemann, Josefine"]
[Result "1-0"]
[ECO "B90"]
[WhiteElo "2287"]
[BlackElo "2294"]
[Annotator "ChessBase"]
[PlyCount "71"]
[EventDate "2017.??.??"]
[EventType "tourn"]
[EventCountry "GER"]
[SourceTitle "playchess.com"]
[Source "ChessBase"]
[SourceQuality "1"]
[TimeControl "40/5400+30:900+30"]

1. e4 {[%emt 0:00:00]} c5 {[%emt 0:00:03]} 2. Nf3 {[%emt 0:00:00]} d6 {[%emt 0:00:03]} 3. d4 {[%emt 0:00:00]} cxd4 {[%emt 0:00:03]} 4. Nxd4 {[%emt 0:00:00]} Nf6 {[%emt 0:00:04]} 5. Nc3 {[%emt 0:00:00]} a6 {[%emt 0:00:03]} 6. Be3 {[%emt 0:00:00]} e5 {[%emt 0:00:04]} 7. Nb3 {[%emt 0:00:00]} Be6 {[%emt 0:00:17]} 8. Qd2 {[%emt 0:00:02]} Nbd7 {[%emt 0:00:05]} 9. f3 {[%emt 0:00:07]} h5 {[%emt 0:00:18]} 10. O-O-O {[%emt 0:00:57]} Be7 {[%emt 0:00:07]} 11. Kb1 {[%emt 0:01:31]} Rc8 {[%emt 0:00:50]} 12. Bd3 {[%emt 0:04:08]} b5 {[%emt 0:00:20]} 13. f4 {[%emt 0:07:12]} Nb6 {[%emt 0:10:50]} 14. h3 {[%emt 0:23:10]} Qc7 {[%emt 0:07:09]} 15. g4 {[%emt 0:21:48]} b4 {[%emt 0:11:36]} 16. Bxb6 {[%emt 0:04:21]} Qxb6 {[%emt 0:00:08]} 17. Nd5 {[%emt 0:03:48]} Bxd5 {[%emt 0:08:10]} 18. exd5 {[%emt 0:00:05]} e4 {[%emt 0:04:34]} 19. Be2 {[%emt 0:00:37]} a5 {[%emt 0:04:47]} 20. g5 {[%emt 0:01:24]} Nd7 {[%emt 0:00:05]} 21. Qd4 {[%emt 0:00:49]} Qc7 {[%emt 0:10:02]} 22. Qxg7 {[%emt 0:01:52]} Rf8 {[%emt 0:00:46]} 23. Nd4 {[%emt 0:00:22]} a4 {[%emt 0:02:19]} 24. Bxh5 {[%emt 0:06:43]} a3 {[%emt 0:01:08]} 25. g6 {[%emt 0:03:04]} Bf6 {[%emt 0:00:42]} 26. gxf7+ {[%emt 0:00:10]} Ke7 {[%emt 0:00:27]} 27. Qg4 {[%emt 0:00:43]} Qc5 {[%emt 0:03:39]} 28. Qe6+ {[%emt 0:01:51]} Kd8 {[%emt 0:00:04]} 29. Qe8+ {[%emt 0:00:13]} Kc7 {[%emt 0:00:46]} 30. Ne6+ {[%emt 0:00:13]} Kb6 {[%emt 0:00:19]} 31. Nxc5 {[%emt 0:00:56]} Nxc5 {[%emt 0:00:04]} 32. Rhe1 {[%emt 0:03:16]} Bxb2 {[%emt 0:00:09]} 33. Rxe4 {[%emt 0:01:02]} Rcxe8 {[%emt 0:00:14]} 34. fxe8=Q {[%emt 0:00:34]} Rxe8 {[%emt 0:00:02]} 35. Rxe8 {[%emt 0:00:12]} Na4 {[%emt 0:00:04]} 36. Rd3 {[%emt 0:00:26]} 1-0

[Event "Erfurt Young Masters 2017"]
[Site "Erfurt"]
[Date "2017.08.04"]
[Round "8"]
[White "Osmanodja, Filiz"]
[Black "Szczepkowska-Horowska, Karina"]
[Result "1-0"]
[ECO "C77"]
[WhiteElo "2273"]
[BlackElo "2396"]
[Annotator "ChessBase"]
[PlyCount "55"]
[EventDate "2017.??.??"]
[EventType "tourn"]
[EventCountry "GER"]
[SourceTitle "playchess.com"]
[Source "ChessBase"]
[SourceQuality "1"]
[TimeControl "40/5400+30:900+30"]

1. e4 {[%emt 0:05:59]} e5 {[%emt 0:01:51]} 2. Nf3 {[%emt 0:00:06]} Nc6 {[%emt 0:00:05]} 3. Bb5 {[%emt 0:00:02]} a6 {[%emt 0:00:06]} 4. Ba4 {[%emt 0:00:01]} Nf6 {[%emt 0:00:07]} 5. d4 {[%emt 0:00:18]} exd4 {[%emt 0:02:38]} 6. O-O {[%emt 0:00:41]} b5 {[%emt 0:04:59]} 7. Bb3 {[%emt 0:00:14]} d6 {[%emt 0:06:20]} 8. Ng5 {[%emt 0:12:53]} Ne5 {[%emt 0:01:15]} 9. f4 {[%emt 0:02:24]} Nc4 {[%emt 0:01:14]} 10. e5 {[%emt 0:16:04]} dxe5 {[%emt 0:16:03]} 11. fxe5 {[%emt 0:05:04]} h6 {[%emt 0:00:07]} 12. exf6 {[%emt 0:05:09]} hxg5 {[%emt 0:00:12]} 13. Qf3 {[%emt 0:11:00]} gxf6 {[%emt 0:08:37]} 14. Qxa8 {[%emt 0:12:31]} Bd6 {[%emt 0:00:06]} 15. g3 {[%emt 0:01:48]} Ne5 {[%emt 0:06:51]} 16. Nd2 {[%emt 0:03:08]} d3 {[%emt 0:10:54]} 17. Ne4 {[%emt 0:03:50]} Be7 {[%emt 0:02:16]} 18. Be3 {[%emt 0:08:57]} Ng4 {[%emt 0:04:01]} 19. Nxg5 {[%emt 0:02:11]} Nxe3 {[%emt 0:06:50]} 20. Nxf7 {[%emt 0:00:02]} Qd7 {[%emt 0:05:55]} 21. Nxh8 {[%emt 0:00:43]} Nxf1 {[%emt 0:01:07]} 22. Rxf1 {[%emt 0:01:35]} c6 {[%emt 0:00:25]} 23. cxd3 {[%emt 0:03:29]} Bc5+ {[%emt 0:01:18]} 24. Kh1 {[%emt 0:00:01]} Kd8 {[%emt 0:00:17]} 25. Qb8 {[%emt 0:00:12]} Qh3 {[%emt 0:04:41]} 26. Nf7+ {[%emt 0:00:52]} Ke7 {[%emt 0:01:47]} 27. Re1+ {[%emt 0:00:18]} Kf8 {[%emt 0:00:31]} 28. Be6 {[%emt 0:01:05]} 1-0

[Event "Erfurt Young Masters 2017"]
[Site "Erfurt"]
[Date "2017.08.04"]
[Round "8"]
[White "Rogozenco, Teodora"]
[Black "Pourkashiyan, Atousa"]
[Result "0-1"]
[ECO "E32"]
[WhiteElo "2169"]
[BlackElo "2289"]
[Annotator "ChessBase"]
[PlyCount "68"]
[EventDate "2017.??.??"]
[EventType "tourn"]
[EventCountry "GER"]
[SourceTitle "playchess.com"]
[Source "ChessBase"]
[SourceQuality "1"]
[TimeControl "40/5400+30:900+30"]

1. d4 {[%emt 0:00:00]} Nf6 {[%emt 0:02:59]} 2. c4 {[%emt 0:00:00]} e6 {[%emt 0:00:04]} 3. Nc3 {[%emt 0:00:00]} Bb4 {[%emt 0:00:04]} 4. Qc2 {[%emt 0:00:00]} d6 {[%emt 0:00:06]} 5. Nf3 {[%emt 0:00:14]} Nbd7 {[%emt 0:00:27]} 6. g3 {[%emt 0:05:52]} b6 {[%emt 0:01:44]} 7. Bg2 {[%emt 0:00:26]} Bb7 {[%emt 0:00:15]} 8. O-O {[%emt 0:00:06]} Bxc3 {[%emt 0:06:55]} 9. Qxc3 {[%emt 0:00:15]} O-O {[%emt 0:05:56]} 10. b3 {[%emt 0:01:08]} Qe7 {[%emt 0:04:41]} 11. Bb2 {[%emt 0:02:40]} Ne4 {[%emt 0:03:38]} 12. Qc2 {[%emt 0:00:43]} f5 {[%emt 0:01:03]} 13. Ne1 {[%emt 0:01:26]} a5 {[%emt 0:05:03]} 14. a3 {[%emt 0:00:29]} c5 {[%emt 0:06:09]} 15. e3 {[%emt 0:05:17]} Rac8 {[%emt 0:05:28]} 16. Qe2 {[%emt 0:03:36]} Ba6 {[%emt 0:04:21]} 17. a4 {[%emt 0:05:31]} d5 {[%emt 0:07:35]} 18. Bxe4 {[%emt 0:00:50]} fxe4 {[%emt 0:00:38]} 19. Ba3 {[%emt 0:00:07]} Qe8 {[%emt 0:09:15]} 20. Rc1 {[%emt 0:01:28]} Rf6 {[%emt 0:04:56]} 21. f3 {[%emt 0:01:27]} Qh5 {[%emt 0:07:02]} 22. Rf2 {[%emt 0:06:44]} dxc4 {[%emt 0:09:37]} 23. bxc4 {[%emt 0:00:26]} exf3 {[%emt 0:00:48]} 24. Nxf3 {[%emt 0:00:53]} Rcf8 {[%emt 0:06:00]} 25. Nd2 {[%emt 0:12:50]} Qg6 {[%emt 0:02:52]} 26. Rxf6 {[%emt 0:05:26]} Rxf6 {[%emt 0:00:02]} 27. Bb2 {[%emt 0:09:56]} Rf7 {[%emt 0:01:05]} 28. Qg2 {[%emt 0:00:53]} Nf8 {[%emt 0:01:38]} 29. d5 {[%emt 0:06:06]} exd5 {[%emt 0:00:38]} 30. cxd5 {[%emt 0:00:16]} Nd7 {[%emt 0:00:26]} 31. e4 {[%emt 0:00:56]} Qg5 {[%emt 0:00:52]} 32. Re1 {[%emt 0:03:11]} Ne5 {[%emt 0:00:03]} 33. Bc3 {[%emt 0:00:30]} Nd3 {[%emt 0:01:07]} 34. Rf1 {[%emt 0:00:22]} Qe3+ {[%emt 0:00:15]} 0-1

[Event "Erfurt Young Masters 2017"]
[Site "Erfurt"]
[Date "2017.08.04"]
[Round "9"]
[White "Heinemann, Josefine"]
[Black "Osmanodja, Filiz"]
[Result "1-0"]
[ECO "B32"]
[WhiteElo "2284"]
[BlackElo "2273"]
[Annotator "NA"]
[PlyCount "77"]
[EventDate "2017.??.??"]
[EventType "tourn"]
[EventCountry "GER"]
[SourceTitle "playchess.com"]
[Source "ChessBase"]
[SourceQuality "1"]
[TimeControl "40/5400+30:900+30"]

1. e4 {[%emt 0:00:00]} c5 {[%emt 0:00:03]} 2. Nf3 {[%emt 0:00:00]} Nc6 {[%emt 0:00:08]} 3. d4 {[%emt 0:00:00]} cxd4 {[%emt 0:00:02]} 4. Nxd4 {[%emt 0:00:00]} e5 {[%emt 0:00:05]} 5. Nb5 {[%emt 0:00:00]} d6 {[%emt 0:00:01]} 6. N1c3 {[%emt 0:00:00]} a6 {[%emt 0:00:11]} 7. Na3 {[%emt 0:00:05]} Be7 {[%emt 0:00:17]} 8. Nc4 {[%emt 0:00:29]} b5 {[%emt 0:00:51] B32: Sicilian: Löwenthal and Kalashnikov Variations} 9. Ne3 {[%emt 0:00:05]} Nf6 {[%emt 0:00:04]} 10. g3 {[%emt 0:03:19]} O-O {[%emt 0:00:51]} 11. Bg2 {[%emt 0:00:13]} b4 {[%emt 0:00:14]} 12. Ncd5 {[%emt 0:00:21]} Nxd5 {[%emt 0:00:03]} 13. Nxd5 {[%emt 0:00:38]} Bg5 {[%emt 0:00:14]} 14. Bxg5 {[%emt 0:04:17]} Qxg5 {[%emt 0:00:03]} 15. O-O {[%emt 0:00:25]} Rb8 {[%emt 0:00:06] [#]} 16. h4 $146 {[%emt 0:02:21]} ({Find the theoretical novelty and annotate with similar games:} 16. Qd3) 16... Qg6 {[%emt 0:09:13]} (16... Qd8 $11) 17. Qd3 {[%emt 0:02:43]} Kh8 {[%emt 0:01:55]} 18. Ne3 {[%emt 0:03:38]} Rd8 {[%emt 0:14:16]} 19. Rfd1 {[%emt 0:05:06]} Nd4 {[%emt 0:09:38]} 20. c3 {[%emt 0:11:40]} bxc3 {[%emt 0:00:21]} 21. bxc3 {[%emt 0:00:05]} Ne6 {[%emt 0:03:03]} 22. Qc4 {[%emt 0:01:50]} Rb2 {[%emt 0:13:05]} 23. Rab1 {[%emt 0:04:15]} Rxb1 {[%emt 0:04:07]} 24. Rxb1 {[%emt 0:00:56]} Nc5 {[%emt 0:06:01]} 25. Rb8 {[%emt 0:02:32]} Rg8 {[%emt 0:02:49]} 26. Qd5 $16 {[%emt 0:03:50]} h5 {[%emt 0:24:23]} 27. Qa8 {[%emt 0:07:35]} Qe6 {[%emt 0:00:02]} 28. Nf5 {[%emt 0:00:12]} Kh7 {[%emt 0:06:17]} 29. Nxd6 {[%emt 0:03:52]} Qxd6 {[%emt 0:00:02]} 30. Rxc8 {[%emt 0:00:06]} Rxc8 {[%emt 0:00:05]} 31. Qxc8 {[%emt 0:00:04]} g6 {[%emt 0:01:11]} 32. Qa8 {[%emt 0:05:23]} Qd1+ {[%emt 0:03:46]} 33. Bf1 {[%emt 0:04:45]} Qe1 {[%emt 0:00:06]} 34. Qd5 {[%emt 0:01:20]} Nxe4 {[%emt 0:00:09]} 35. Qxf7+ {[%emt 0:01:17]} Kh6 {[%emt 0:00:43]} 36. Kg2 {[%emt 0:02:55]} Qd2 {[%emt 0:02:31]} 37. Qf8+ {[%emt 0:01:18]} Kh7 {[%emt 0:00:01]} 38. Bc4 {[%emt 0:00:45]} g5 {[%emt 0:01:27]} 39. Bg8+ {[%emt 0:00:20]} 1-0